Cogmind - Beta 10.2 --- EXPLORER MODE // 2021.08.16 @ 20:06:18 // Winter2019/RPGLIKE Player: Zaltroth Result: Destroyed by Striker with Plasma Lance Performance ------------- Evolutions (5) 2500 Regions Visited (16) 3200 Robots Destroyed (219) 1095 Value Destroyed (10482) 10482 Prototype IDs (27) 540 Alien Tech Used (1) 200 Bonus (3518) 3518 TOTAL SCORE: 21535 Bonus ------- High Alert Combat Kills 246 Follower Combat Kills 447 Entered Garrisons 400 Used RIF Installer 1000 MAIN.C Attacked Warlord 500 Warlord Defense Kill 1128 Friendly Fire -203 Cogmind --------- Core Integrity 0/1050 Matter 300/300 Energy 530/530 System Corruption 0% Temperature Cool (21) Movement Flying (94) Ox1 Location -5/Warlord Parts ------- > --- POWER (2) -------- Light Fission Core Light Antimatter Reactor > --- PROPULSION (3) --- Improved Cesium-ion Thruster Improved Cesium-ion Thruster Improved Cesium-ion Thruster > --- UTILITY (8) ------ Advanced Weight Redist. System Triangulator Advanced Signal Interpreter Improved Terrain Scanner 0b10 Decoder Chip [Scout] Cloaking Device Relay Coupler [NC] (71) Relay Coupler [Demolisher] (74) > --- WEAPON (4) ------- Nova Cannon Nova Cannon Improved Remote Datajack > --- INVENTORY (6) ---- System Backup Module Advanced Drone Bay (2/2) Phasing AFG Self-destruct Interrupter (50) Peak State ------------ > --- POWER ------------ Light Fission Core Light Antimatter Reactor > --- PROPULSION ------- Improved Cesium-ion Thruster Improved Cesium-ion Thruster Improved Cesium-ion Thruster > --- UTILITY ---------- Advanced Weight Redist. System Triangulator Advanced Signal Interpreter Improved Terrain Scanner 0b10 Decoder Chip [Scout] Cloaking Device Relay Coupler [NC] Relay Coupler [Demolisher] > --- WEAPON ----------- Nova Cannon Vortex Catalyst Activator Improved Remote Datajack > --- INVENTORY -------- System Backup Module Advanced Drone Bay Phasing AFG Nova Cannon Self-destruct Interrupter [Rating: 92] Favorites ----------- Power Light Fission Core Engine Light Angular Momentum Engine Power Core Light Fission Core Reactor Light Antimatter Reactor Propulsion Improved Cesium-ion Thruster Leg Aluminum Leg Hover Unit Gravmag System Flight Unit Improved Cesium-ion Thruster Utility Improved Terrain Scanner Device Improved Terrain Scanner Processor Advanced Signal Interpreter Hackware Relay Coupler [NC] Protection Light Armor Plating Weapon Improved Remote Datajack Energy Gun Precision Shock Rifle Energy Cannon Nova Cannon Ballistic Gun Autogun Ballistic Cannon Slug Cannon Launcher Guided EMP Blaster Special Weapon Improved Remote Datajack Build | -11 -10 -10 -9 -9 -7 -6 -6 -6 -6 -6 -6 -6 -5 -5 -5 -5 ------- Run | Scr Mat Min Mat Min Zio Pro Fac Was Fac Gar Fac Gar Fac Upp Upp War Slots Evolved 13 | 4 . . 1 1 . 2 3 . 1 . . 1 . . . . Power 1 | . . . . . . . 1 . . . . . . . . . Propulsion 2 | 1 . . . . . . 1 . . . . . . . . . Utility 7 | 2 . . 1 . . 1 1 . 1 . . 1 . . . . Weapon 3 | 1 . . . 1 . 1 . . . . . . . . . . Parts Attached 229 | 9 2 . 4 1 7 2 18 2 111 17 18 5 5 8 7 13 Power 26 | 1 1 . . . . . 3 . 14 2 2 . . . 1 2 Engine 11 | 1 . . . . . . 2 . 8 . . . . . . . Core 12 | . 1 . . . . . 1 . 6 2 2 . . . . . Reactor 3 | . . . . . . . . . . . . . . . 1 2 Propulsion 21 | 2 . . . . 1 1 1 . 15 . . . 1 . . . Treads . | . . . . . . . . . . . . . . . . . Leg 9 | 2 . . . . 1 1 1 . 4 . . . . . . . Wheel . | . . . . . . . . . . . . . . . . . Hover 7 | . . . . . . . . . 7 . . . . . . . Flight 5 | . . . . . . . . . 4 . . . 1 . . . Utility 65 | 4 . . 2 . 1 1 3 1 29 4 5 3 2 4 1 5 Device 40 | 1 . . . . 1 . 1 1 24 . 3 . 2 3 1 3 Storage . | . . . . . . . . . . . . . . . . . Processor 8 | 1 . . 1 . . . . . 3 . . . . 1 . 2 Hackware 9 | . . . . . . . . . 1 4 1 3 . . . . Protection 8 | 2 . . 1 . . 1 2 . 1 . 1 . . . . . Artifact . | . . . . . . . . . . . . . . . . . Weapon 117 | 2 1 . 2 1 5 . 11 1 53 11 11 2 2 4 5 6 Energy Gun 21 | 2 . . 2 . 1 . 4 . 6 . 3 . . 1 . 2 Energy Cannon 59 | . 1 . . 1 . . 4 . 32 9 5 1 1 1 2 2 Ballistic Gun 1 | . . . . . . . 1 . . . . . . . . . Ballistic Cannon 4 | . . . . . 2 . 2 . . . . . . . . . Launcher 6 | . . . . . . . . 1 2 . 1 . . . 1 1 Special Weapon 26 | . . . . . 2 . . . 13 2 2 1 1 2 2 1 Impact Weapon . | . . . . . . . . . . . . . . . . . Slashing Weapon . | . . . . . . . . . . . . . . . . . Piercing Weapon . | . . . . . . . . . . . . . . . . . Special Melee Weapon . | . . . . . . . . . . . . . . . . . Unidentified Prototypes 17 | . . . 1 . 1 . 1 . 6 . 1 . . . 1 6 Parts Lost 7 | . . . . . . 1 1 5 . . . . . . . . Power . | . . . . . . . . . . . . . . . . . Propulsion 1 | . . . . . . . . 1 . . . . . . . . Utility 3 | . . . . . . 1 . 2 . . . . . . . . Weapon 3 | . . . . . . . 1 2 . . . . . . . . Highest Loss Streak 4 | . . . . . . 1 1 4 . . . . . . . . Average Slot Usage (%) 89 | . 99 100 95 91 95 76 82 63 86 83 92 93 92 90 93 94 Engine 2 | . 7 . . . . . 5 6 4 6 5 . . . . . Core 7 | . 4 12 11 10 10 8 7 . 4 6 6 11 11 11 6 5 Leg 8 | . 25 25 22 20 20 16 16 12 2 . . . . . . . Hover 3 | . . . . . . . . . 14 . . . . . . . Flight 6 | . . . . . . . . . . 18 18 17 17 17 17 17 Device 20 | . 12 12 11 10 15 8 7 9 30 25 25 23 25 23 23 22 Processor 11 | . 12 12 18 20 20 16 13 10 6 6 6 5 5 7 11 11 Hackware 4 | . . . . . . . . . . 5 12 15 12 11 11 11 Protection 1 | . 12 12 10 1 . . 5 8 1 . . . . . . . Energy Gun 3 | . 12 12 18 20 2 . 7 1 4 6 5 . . . . 2 Energy Cannon 5 | . 11 12 3 8 1 . 6 10 9 5 5 5 5 5 5 5 Ballistic Cannon 2 | . . . . . 8 8 5 . . . . . . . . . Launcher 1 | . . . . . . . . 2 . . . 5 5 5 4 3 Special Weapon 6 | . . . . . 17 16 3 . 3 3 6 5 4 4 4 4 Naked Turns . | . . . . . . . . . . . . . . . . . Heaviest Build 57 | 10 14 14 19 19 37 37 53 57 57 48 43 43 51 52 56 54 Greatest Support 76 | 20 20 20 20 20 35 45 76 76 71 34 43 43 43 43 48 48 Greatest Overweight (x) 3 | 1 . . . . 1 1 . 1 3 1 . . 2 1 1 1 Average Overweight (x) . | . . . . . . . . . . . . . . . . . Largest Inventory Capacity 6 | 2 2 3 3 3 3 4 4 5 5 5 5 5 6 6 6 6 Average Capacity 4 | 2 2 2 3 3 3 3 4 4 5 5 5 5 5 6 6 6 Most Carried 6 | 2 1 . 3 3 3 4 4 5 5 5 5 5 6 6 6 6 Average Carried 4 | . . . 2 2 2 3 3 3 4 4 4 5 4 5 6 5 Final Capacity 6 | 2 2 3 3 3 3 4 4 5 5 5 5 5 6 6 6 6 Final Carried 6 | . . . 3 3 3 3 4 5 5 5 5 5 5 6 6 5 Class Distribution -------------------- 46% | Wizard-Scout 36% | Hacker-Skirmisher 8% | Wizard-Mutant 8% | Wizard-Skirmisher Dominant Class ---------------- Hacker-Skirmisher | -10/Materials Hacker-Skirmisher | -10/Mines Hacker-Skirmisher | -9/Materials Hacker-Skirmisher | -9/Mines Hacker-Skirmisher | -7/Zion Hacker-Skirmisher | -6/Proximity Caves Wizard-Skirmisher | -6/Factory Wizard-Mutant | -6/Waste Wizard-Scout | -6/Factory Wizard-Scout | -6/Garrison Wizard-Scout | -6/Factory Wizard-Scout | -6/Garrison Wizard-Mutant | -5/Factory Wizard-Scout | -5/Upper Caves Wizard-Scout | -5/Upper Caves Wizard-Scout | -5/Warlord Resources | -11 -10 -10 -9 -9 -7 -6 -6 -6 -6 -6 -6 -6 -5 -5 -5 -5 ----------- Run | Scr Mat Min Mat Min Zio Pro Fac Was Fac Gar Fac Gar Fac Upp Upp War Matter Collected 4488 | 290 20 . 40 10 70 102 313 94 1322 224 181 369 273 321 585 274 Remotely 10 | . . . . . . . . . 10 . . . . . . . Salvage Created 10492 | 152 845 64 529 . . 45 520 . 2919 754 873 648 580 180 982 1401 Parts 439 | 12 35 10 31 . . 2 14 . 116 35 36 24 40 12 35 37 Haulers Intercepted 11 | . 1 . 2 . . . . . 7 . 1 . . . . . Recyclers Shooed 11 | 1 4 . 4 . . . . . 1 . 1 . . . . . Parts Field Recycled . | . . . . . . . . . . . . . . . . . Retrieved Matter . | . . . . . . . . . . . . . . . . . Parts Self-Destructed . | . . . . . . . . . . . . . . . . . Prevented . | . . . . . . . . . . . . . . . . . Kills | -11 -10 -10 -9 -9 -7 -6 -6 -6 -6 -6 -6 -6 -5 -5 -5 -5 ------- Run | Scr Mat Min Mat Min Zio Pro Fac Was Fac Gar Fac Gar Fac Upp Upp War Combat Hostiles Destroyed 165 | . 8 2 5 . . 7 10 . 39 16 6 14 12 2 22 22 Melee 1 | . . . . . . . . . . . . . . . . 1 Guns 29 | . . 1 4 . . . . . 9 5 1 . . . . 9 Cannons 92 | . 8 1 1 . . 5 8 . 23 9 4 6 6 2 9 10 AOE 22 | . . . . . . . . . 2 1 1 8 5 . 5 . Classes Destroyed 22 | 2 3 1 2 . . 2 3 . 1 . . . 1 1 1 5 Worker 3 | . . . 1 . . . . . . . . . 2 . . . Builder 3 | . . . . . . . . . . . . . 3 . . . Tunneler 8 | 4 . 2 . . . . . . 2 . . . . . . . Hauler 11 | . 1 . 2 . . . . . 7 . 1 . . . . . Recycler 14 | 1 5 . 3 . . . 2 . 1 . 2 . . . . . Operator 2 | . . . . . . . . . 1 . 1 . . . . . Watcher 13 | . 3 . 2 . . . . . 5 . 2 . 1 . . . Swarmer 39 | . . 2 . . . 4 3 . 10 6 . 8 5 . 1 . Saboteur 3 | . . . . . . . . . . . . . . . . 3 Grunt 49 | . 8 . 2 . . . 4 . 11 5 1 4 . . 8 6 Brawler 10 | . . . . . . . 1 . 1 1 . 1 . . 6 . Duelist 4 | . . . . . . . . . . . . . . . 4 . Sentry 16 | . . . 3 . . . . . 6 1 2 . 1 1 2 . Demolisher 1 | . . . . . . . 1 . . . . . . . . . Specialist 1 | . . . . . . . . . . . . . . . . 1 Hunter 11 | . . . . . . 2 . . 4 . . . 4 1 . . Programmer 17 | . . . . . . . 1 . 7 3 3 . 2 . 1 . Behemoth 2 | . . . . . . 1 . . . . . 1 . . . . Executioner 1 | . . . . . . . . . . . . . . . . 1 Decomposer 1 | . . . . . . . . . . . . . . 1 . . Samaritan 1 | . . . . . . . . . . . . . . 1 . . Tinkerer 1 | . . . . . . . . . . . . . . . . 1 Thug 5 | . . . . . . . . . . . . . . . . 5 Bouncer 2 | . . . . . . . . . . . . . . . . 2 Marauder 2 | . . . . . . . . . . . . . . . . 2 Mutant 2 | . . . . . . . . . . . . . . . . 2 Best Kill Streak 11 | 5 5 2 8 . . 2 5 . 6 5 9 6 8 1 9 11 Combat Bots Only 11 | . 2 2 1 . . 2 4 . 4 5 4 6 5 1 9 11 Max Kills in Single Turn 3 | 1 1 1 2 . . 1 1 . 2 1 2 1 3 1 2 1 Gunslinging . | . . . . . . . . . . . . . . . . . Exploded 2 | . . . . . . . . . 1 1 1 1 1 . 2 . Melee 1 | . . . . . . . . . . . . . . . . 1 Uniques/NPCs Destroyed . | . . . . . . . . . . . . . . . . . Combat | -11 -10 -10 -9 -9 -7 -6 -6 -6 -6 -6 -6 -6 -5 -5 -5 -5 -------- Run | Scr Mat Min Mat Min Zio Pro Fac Was Fac Gar Fac Gar Fac Upp Upp War Damage Taken 7159 | . 213 45 115 . . 904 371 267 1312 691 130 280 999 18 129 1685 Core 5503 | . 142 38 72 . . 642 238 213 1003 562 110 218 793 18 104 1350 Absorbed by Shields 9 | . . . . . . . . . . 9 . . . . . . Redirected to Core 4456 | . 128 6 63 . . 585 213 75 860 417 66 181 664 . 80 1118 Core Remaining (%) 82 | 100 . 95 . . . 34 . . . . . 100 . . . . Volleys Fired 646 | 9 37 4 25 . . 39 27 8 145 66 22 39 64 8 66 87 Largest 4 | 2 2 2 2 . . 3 4 1 4 4 2 2 2 2 2 3 Hottest 343 | 90 110 110 110 . . 248 315 43 343 333 226 226 226 226 226 226 Shots Fired 990 | 18 74 8 50 . . 66 54 7 270 93 26 40 70 9 79 126 Gun 286 | 18 37 4 38 . . . 13 . 94 40 11 . . . . 31 Cannon 543 | . 37 4 12 . . 38 36 . 173 48 10 19 32 7 41 86 Launcher 86 | . . . . . . . . 7 . . 2 14 23 . 31 9 Special 75 | . . . . . . 28 5 . 3 5 3 7 15 2 7 . Kinetic 54 | . . . . . . 38 16 . . . . . . . . . Thermal 482 | 18 74 8 24 . . 28 14 . 101 20 10 19 32 7 41 86 Explosive 7 | . . . . . . . . 7 . . . . . . . . Electromagnetic 374 | . . . 26 . . . 24 . 166 68 13 14 23 . 31 9 Entropic 31 | . . . . . . . . . . . . . . . . 31 Robot Hit Streak 62 | 13 62 5 49 . . 36 28 13 32 31 35 32 29 27 36 33 Robot Miss Streak 3 | . 1 2 1 . . 3 1 . 2 1 1 1 1 . 1 2 Penetration Max . | . . . . . . . . . . . . . . . . . Secondary Targets . | . . . . . . . . . . . . . . . . . Shots Hit Robots 779 | 13 69 5 43 . . 52 44 7 222 74 22 29 52 9 40 98 Core Hits 360 | 6 26 4 24 . . 13 18 2 91 29 19 18 33 5 40 32 Critical Hits 8 | . . . . . . 1 1 . 1 . 1 1 . . . 3 Critical Kills 2 | . . . . . . . 1 . . . . . . . . 1 Critical Parts Destroyed 5 | . . . . . . 1 . . 1 . 1 1 . . . 1 Melee Attacks . | . . . . . . . . . . . . . . . . . Impact . | . . . . . . . . . . . . . . . . . Slashing . | . . . . . . . . . . . . . . . . . Piercing . | . . . . . . . . . . . . . . . . . Sneak Attacks . | . . . . . . . . . . . . . . . . . Combat Hostiles . | . . . . . . . . . . . . . . . . . Follow-up Attacks . | . . . . . . . . . . . . . . . . . Damage Inflicted 25829 | 160 1075 95 702 . . 944 1240 911 6664 1823 880 1262 2298 304 3109 4362 Guns 5242 | 160 452 38 489 . . . 305 . 1701 625 246 . . . . 1226 Cannons 15039 | . 610 54 174 . . 603 906 . 4640 1095 275 696 1255 304 1429 2998 Explosions 5136 | . . . 39 . . . . 894 314 103 359 566 1043 . 1680 138 Melee . | . . . . . . . . . . . . . . . . . Ramming 42 | . 13 3 . . . . . 17 9 . . . . . . . Kinetic 899 | . . . . . . 603 296 . . . . . . . . . Thermal 14067 | 160 1062 92 364 . . 341 284 . 3557 835 275 816 1305 304 1674 2998 Explosive 1201 | . . . . . . . . 894 . . 307 . . . . . Electromagnetic 8394 | . . . 338 . . . 660 . 3098 988 298 446 993 . 1435 138 Impact . | . . . . . . . . . . . . . . . . . Slashing . | . . . . . . . . . . . . . . . . . Piercing . | . . . . . . . . . . . . . . . . . Entropic 1226 | . . . . . . . . . . . . . . . . 1226 Highest Corruption 10 | . . . . . . . 1 10 10 4 1 . 1 . . . Average Corruption 3 | . . . . . . . 1 6 4 1 1 . 1 . . . Corruption Purged 25 | . . . . . . . . . 19 4 1 . 1 . . . Effects 92 | . . . . . . . 3 6 72 5 2 . 4 . . . Message Errors 25 | . . . . . . . 1 . 21 1 . . 2 . . . Matter Fused 12 | . . . . . . . . 1 10 1 . . . . . . Heat Flow Errors 5 | . . . . . . . . . 4 1 . . . . . . Energy Discharges 12 | . . . . . . . . 1 9 . 1 . 1 . . . Parts Rejected 2 | . . . . . . . . 1 1 . . . . . . . Data Loss (minor) 14 | . . . . . . . 2 . 10 . 1 . 1 . . . Data Loss (major) 1 | . . . . . . . . . 1 . . . . . . . Misfires 1 | . . . . . . . . . 1 . . . . . . . Misdirections 5 | . . . . . . . . 1 4 . . . . . . . Targeting Errors 10 | . . . . . . . . 1 7 2 . . . . . . Weapon Failures 5 | . . . . . . . . 1 4 . . . . . . . Overload Shots . | . . . . . . . . . . . . . . . . . Overflow Damage 772 | . . . 25 . . 11 4 . 244 97 15 45 39 37 216 39 Projectiles 639 | . . . . . . 11 4 . 234 97 . 19 36 37 162 39 Explosions 133 | . . . 25 . . . . . 10 . 15 26 3 . 54 . Melee . | . . . . . . . . . . . . . . . . . Knockbacks 5 | . . . . . . 4 1 . . . . . . . . . Impact . | . . . . . . . . . . . . . . . . . Kinetic 5 | . . . . . . 4 1 . . . . . . . . . Secondary . | . . . . . . . . . . . . . . . . . Self-Inflicted Damage 271 | . 3 1 . . . . . 123 24 114 . . 3 . . 3 Shots 10 | . . . . . . . . 5 1 2 . . 1 . . 1 Rammed 4 | . 1 1 . . . . . 1 1 . . . . . . . Targets Rammed 6 | . 3 1 . . . . . 1 1 . . . . . . . Kicked 2 | . 2 . . . . . . . . . . . . . . . Crushed . | . . . . . . . . . . . . . . . . . Highest Temperature 435 | 15 279 . . . . . 174 . 417 422 15 5 63 18 90 435 Average Temperature 88 | 6 99 . . . . . 71 . 108 117 10 5 32 12 34 102 Received Heat Transfer 1461 | . 180 . 72 . . 108 105 . 303 156 39 105 297 . 30 66 Effects 5 | . . . . . . . . . 4 1 . . . . . . Shutdowns 2 | . . . . . . . . . 2 . . . . . . . Energy Bleed 2 | . . . . . . . . . 1 1 . . . . . . Interference 1 | . . . . . . . . . 1 . . . . . . . Siege Activations . | . . . . . . . . . . . . . . . . . Robots Corrupted 19 | . . . . . . . 1 . 7 1 . . 1 . 8 1 Combat Hostiles 17 | . . . . . . . 1 . 5 1 . . 1 . 8 1 Parts Fried 59 | . . . 1 . . . 7 . 28 4 3 2 6 . 7 1 Impact Corruptions . | . . . . . . . . . . . . . . . . . Robots Melted 4 | . . . . . . 2 1 . . . . . . . . 1 Combat Hostiles 4 | . . . . . . 2 1 . . . . . . . . 1 Parts Melted 20 | . 4 . 1 . . 3 1 . 4 . 1 1 1 . 1 3 Heat Transferred 17155 | 433 2627 222 864 . . 2160 685 . 3038 558 296 742 1136 259 1434 2701 Parts Sabotaged 2 | . . . . . . . . . . . . . . . . 2 Parts Stolen . | . . . . . . . . . . . . . . . . . Parts Stripped . | . . . . . . . . . . . . . . . . . Power Chain Reactions 11 | . . . 1 . . . . . 4 2 . 2 1 . 1 . Missiles Intercepted . | . . . . . . . . . . . . . . . . . Alert | -11 -10 -10 -9 -9 -7 -6 -6 -6 -6 -6 -6 -6 -5 -5 -5 -5 ------- Run | Scr Mat Min Mat Min Zio Pro Fac Was Fac Gar Fac Gar Fac Upp Upp War Peak Influence 787 | 25 171 138 126 29 . . 191 34 638 787 592 647 355 . . . Initial 306 | . 12 37 . 29 . . . . . 16 306 175 252 . . . Average 171 | 15 83 77 54 29 . . 63 11 122 510 302 476 127 . . . Maximum Alert Level 3 | . . . . . . . . . 2 3 2 2 1 . . . Low Security (%) 71 | 100 100 100 100 100 . . 100 100 76 9 37 3 86 . . . Level 1 14 | . . . . . . . . . 19 15 33 26 13 . . . Level 2 12 | . . . . . . . . . 3 58 29 70 . . . . Level 3 1 | . . . . . . . . . . 16 . . . . . . Level 4 . | . . . . . . . . . . . . . . . . . Level 5 . | . . . . . . . . . . . . . . . . . High Security . | . . . . . . . . . . . . . . . . . Max Security . | . . . . . . . . . . . . . . . . . Squads Dispatched 22 | . . . . . . . 7 . 9 . 2 . 3 . 1 . Investigation 5 | . . . . . . . 2 . 2 . . . 1 . . . Extermination 8 | . . . . . . . 1 . 5 . 1 . 1 . . . Reinforcement 5 | . . . . . . . 1 . 2 . 1 . 1 . . . Assault 1 | . . . . . . . . . . . . . . . 1 . Garrison 3 | . . . . . . . 3 . . . . . . . . . Intercept . | . . . . . . . . . . . . . . . . . Construction Impeded 2 | . . . . . . . 1 . . . . . 1 . . . Haulers Reinforced 3 | . . . . . . . . . 2 . 1 . . . . . Stealth | -11 -10 -10 -9 -9 -7 -6 -6 -6 -6 -6 -6 -6 -5 -5 -5 -5 --------- Run | Scr Mat Min Mat Min Zio Pro Fac Was Fac Gar Fac Gar Fac Upp Upp War Distress Signals 9 | . 2 . 2 . . . 1 . 1 . 1 . 1 . 1 . Communications Jammed . | . . . . . . . . . . . . . . . . . Distress Signals . | . . . . . . . . . . . . . . . . . Times Spotted 230 | . 11 2 9 . . 10 11 5 47 21 9 21 34 1 18 31 Peak Tracking Total 10 | . 3 2 3 . . 3 3 5 4 4 3 5 7 1 10 6 Tactical Retreats 19 | . . . 1 . . 3 . . 2 1 . . 6 . 5 1 Traps | -11 -10 -10 -9 -9 -7 -6 -6 -6 -6 -6 -6 -6 -5 -5 -5 -5 ------- Run | Scr Mat Min Mat Min Zio Pro Fac Was Fac Gar Fac Gar Fac Upp Upp War Traps Triggered 26 | . 2 . 1 . . . 1 . 2 6 1 6 . . . 7 Indirectly 2 | . . . . . . . . . . . . 1 . . . 1 Trap Hack Attempts . | . . . . . . . . . . . . . . . . . Triggered . | . . . . . . . . . . . . . . . . . Disarmed . | . . . . . . . . . . . . . . . . . Reprogrammed 12 | . . . 6 . . . . . 6 . . . . . . . Reused . | . . . . . . . . . . . . . . . . . Traps Extracted . | . . . . . . . . . . . . . . . . . Installed . | . . . . . . . . . . . . . . . . . Triggered 5 | . . . . . . 1 . . . . . . 1 . . 3 Machines | -11 -10 -10 -9 -9 -7 -6 -6 -6 -6 -6 -6 -6 -5 -5 -5 -5 ---------- Run | Scr Mat Min Mat Min Zio Pro Fac Was Fac Gar Fac Gar Fac Upp Upp War Machines Disabled 39 | . . . . . . . 1 . 6 6 21 3 . . 2 . Max in Single Turn 6 | . . . . . . . . . 2 2 6 1 . . 1 . Garrison Relay 7 | . . . . . . . . . . 4 . 3 . . . . Phase Generator 1 | . . . . . . . . . . 1 . . . . . . Machines Sabotaged . | . . . . . . . . . . . . . . . . . Garrisons Compromised . | . . . . . . . . . . . . . . . . . Overloaded Fab Kills . | . . . . . . . . . . . . . . . . . Fab Network Shutdowns 2 | . . . . . . . . . 1 . 1 . . . . . Hacking | -11 -10 -10 -9 -9 -7 -6 -6 -6 -6 -6 -6 -6 -5 -5 -5 -5 --------- Run | Scr Mat Min Mat Min Zio Pro Fac Was Fac Gar Fac Gar Fac Upp Upp War Machines Accessed 57 | . 8 . 3 . 1 . 6 . 16 . 13 . 4 3 1 2 Terminals 32 | . 7 . 3 . . . 4 . 9 . 7 . 2 . . . Fabricators 4 | . . . . . . . . . 3 . 1 . . . . . Repair Stations 2 | . . . . . . . . . . . 1 . 1 . . . Recycling Units 8 | . 1 . . . . . 1 . 3 . 2 . 1 . . . Scanalyzers 1 | . . . . . . . . . . . 1 . . . . . Garrison Access 3 | . . . . . . . 1 . 1 . 1 . . . . . Total Hacks 273 | . 29 . 27 . 4 . 55 . 79 . 45 . 20 10 1 3 Successful 231 | . 25 . 21 . 4 . 43 . 70 . 38 . 16 10 1 3 Failed 42 | . 4 . 6 . . . 12 . 9 . 7 . 4 . . . Catastrophic 2 | . 1 . . . . . 1 . . . . . . . . . Database Lockouts . | . . . . . . . . . . . . . . . . . Manual 162 | . 22 . 17 . . . 42 . 47 . 22 . 12 . . . Terminals 197 | . 27 . 27 . . . 47 . 58 . 24 . 14 . . . Fabricators 10 | . . . . . . . . . 8 . 2 . . . . . Repair Stations 7 | . . . . . . . . . . . 6 . 1 . . . Recycling Units 31 | . 2 . . . . . 4 . 12 . 8 . 5 . . . Scanalyzers 3 | . . . . . . . . . . . 3 . . . . . Garrison Access 7 | . . . . . . . 4 . 1 . 2 . . . . . Terminal Hacks 113 | . 14 . 13 . 4 . 27 . 27 . 8 . 6 10 1 3 Record 15 | . . . . . . . . . . . 4 . . 8 1 2 Part Schematic 20 | . . . 1 . 4 . 5 . 8 . . . 2 . . . Robot Schematic 3 | . . . . . . . . . 2 . . . 1 . . . Robot Analysis 1 | . 1 . . . . . . . . . . . . . . . Prototype ID Bank 8 | . 5 . 2 . . . 1 . . . . . . . . . Open Door 3 | . . . . . . . . . . . . . . 2 . 1 Level Access Points 2 | . . . . . . . 1 . 1 . . . . . . . Branch Access Points 4 | . 1 . . . . . 1 . 1 . 1 . . . . . Emergency Access Points 3 | . 1 . 1 . . . . . 1 . . . . . . . Machine Index 2 | . . . . . . . 1 . 1 . . . . . . . Terminal Index 5 | . 1 . 2 . . . 1 . . . 1 . . . . . Fabricator Index 1 | . . . . . . . 1 . . . . . . . . . Garrison Index 2 | . 1 . 1 . . . . . . . . . . . . . Alert Level 12 | . 2 . 2 . . . 2 . 5 . . . 1 . . . Unreport Threat 5 | . . . . . . . 1 . 1 . 1 . 2 . . . Locate Traps 3 | . 1 . . . . . . . 2 . . . . . . . Reprogram Traps 2 | . . . 1 . . . . . 1 . . . . . . . Patrol Status 1 | . . . . . . . 1 . . . . . . . . . Investigation Status 1 | . 1 . . . . . . . . . . . . . . . Reinforcement Status 1 | . . . . . . . . . 1 . . . . . . . Garrison Status 1 | . . . . . . . 1 . . . . . . . . . Coupling Status 1 | . . . . . . . 1 . . . . . . . . . Recall Investigation 1 | . . . . . . . 1 . . . . . . . . . Recall Reinforcements 1 | . . . . . . . 1 . . . . . . . . . Recall Assault 1 | . . . . . . . 1 . . . . . . . . . Hauler Manifests 5 | . . . 2 . . . 3 . . . . . . . . . Registered Components 2 | . . . . . . . 1 . 1 . . . . . . . Registered Prototypes 1 | . . . . . . . 1 . . . . . . . . . Zone Layout 6 | . . . 1 . . . 2 . 2 . 1 . . . . . Fabricator Hacks 8 | . . . . . . . . . 6 . 2 . . . . . Load Schematic 4 | . . . . . . . . . 3 . 1 . . . . . Build 4 | . . . . . . . . . 3 . 1 . . . . . Repair Station Hacks 6 | . . . . . . . . . . . 6 . . . . . Scan Component 3 | . . . . . . . . . . . 3 . . . . . Repair 3 | . . . . . . . . . . . 3 . . . . . Recycling Unit Hacks 13 | . 1 . . . . . 2 . 6 . 3 . 1 . . . Process 4 | . . . . . . . 1 . 2 . 1 . . . . . Report Inventory 7 | . 1 . . . . . 1 . 3 . 2 . . . . . Retrieve Components 2 | . . . . . . . . . 1 . . . 1 . . . Scanalyzer 2 | . . . . . . . . . . . 2 . . . . . Insert Component 1 | . . . . . . . . . . . 1 . . . . . Analyze 1 | . . . . . . . . . . . 1 . . . . . Garrison Access Hacks 4 | . . . . . . . 1 . 1 . 2 . . . . . Unlock Access 3 | . . . . . . . 1 . 1 . 1 . . . . . Coupler Status 1 | . . . . . . . . . . . 1 . . . . . Unauthorized Hacks 84 | . 10 . 8 . . . 13 . 30 . 15 . 8 . . . Terminals 62 | . 9 . 8 . . . 9 . 23 . 10 . 3 . . . Track 20 | . 2 . 3 . . . 3 . 9 . 3 . . . . . Assimilate 5 | . . . . . . . 1 . 3 . 1 . . . . . Botnet 27 | . 6 . 3 . . . 3 . 9 . 4 . 2 . . . Detonate 2 | . . . 1 . . . . . . . 1 . . . . . Disrupt 1 | . . . . . . . . . 1 . . . . . . . Operators 7 | . 1 . 1 . . . 2 . 1 . 1 . 1 . . . Fabricators 2 | . . . . . . . . . 2 . . . . . . . Prioritize 1 | . . . . . . . . . 1 . . . . . . . Siphon 1 | . . . . . . . . . 1 . . . . . . . Repair Stations 1 | . . . . . . . . . . . . . 1 . . . Mechanics 1 | . . . . . . . . . . . . . 1 . . . Recycling Units 17 | . 1 . . . . . 2 . 5 . 5 . 4 . . . Monitor 7 | . 1 . . . . . 1 . 2 . 2 . 1 . . . Reject 3 | . . . . . . . . . 1 . 1 . 1 . . . Recyclers 5 | . . . . . . . 1 . 2 . 1 . 1 . . . Mask 2 | . . . . . . . . . . . 1 . 1 . . . Scanalyzers . | . . . . . . . . . . . . . . . . . Garrison Access 2 | . . . . . . . 2 . . . . . . . . . Reprogram 1 | . . . . . . . 1 . . . . . . . . . Watchers 1 | . . . . . . . 1 . . . . . . . . . Data Cores Recovered . | . . . . . . . . . . . . . . . . . Used . | . . . . . . . . . . . . . . . . . Hacking Detections 37 | . 7 . 3 . . . 6 . 10 . 8 . 3 . . . Full Trace Events 2 | . . . . . . . 2 . . . . . . . . . Feedback Events 1 | . . . . . . . 1 . . . . . . . . . Corruption 1 | . . . . . . . 1 . . . . . . . . . Feedback Blocked . | . . . . . . . . . . . . . . . . . Robot Schematics Acquired 3 | . . . . . . . . . 2 . . . 1 . . . Robots Built . | . . . . . . . . . . . . . . . . . Matter . | . . . . . . . . . . . . . . . . . Time . | . . . . . . . . . . . . . . . . . Total Robot Build Rating . | . . . . . . . . . . . . . . . . . Part Schematics Acquired 19 | . . . 1 . 4 . 5 . 6 . 1 . 2 . . . Parts Built 3 | . . . . . . . . . 2 . 1 . . . . . Matter 402 | . . . . . . . . . 146 . 256 . . . . . Time 88 | . . . . . . . . . 24 . 64 . . . . . Total Part Build Rating 14 | . . . . . . . . . 6 . 8 . . . . . Parts Repaired 3 | . . . . . . . . . . . 3 . . . . . Time 84 | . . . . . . . . . . . 84 . . . . . Parts Recycled . | . . . . . . . . . . . . . . . . . Recycled Matter 174 | . . . . . . . 6 . 152 . 16 . . . . . Retrieved Matter . | . . . . . . . . . . . . . . . . . Retrieved Components 10 | . . . . . . . . . 10 . . . . . . . Parts Scanalyzed 1 | . . . . . . . . . . . 1 . . . . . Part Schematics Acquired 1 | . . . . . . . . . . . 1 . . . . . Parts Damaged . | . . . . . . . . . . . . . . . . . Bothacking | -11 -10 -10 -9 -9 -7 -6 -6 -6 -6 -6 -6 -6 -5 -5 -5 -5 ------------ Run | Scr Mat Min Mat Min Zio Pro Fac Was Fac Gar Fac Gar Fac Upp Upp War Used RIF Installer 2 | . . . . . . . . . . 1 . 1 . . . . Threat Obfuscator 1 | . . . . . . . . . . . . 1 . . . . Robots Hacked 26 | . . . . . . . . . 2 4 2 4 11 2 1 . Non-combat 10 | . . . . . . . . . 2 . 1 . 5 2 . . Combat 16 | . . . . . . . . . . 4 1 4 6 . 1 . Robot Hacks Applied 29 | . . . . . . . . . 2 4 2 4 14 2 1 . parse_system 6 | . . . . . . . . . 1 1 . 1 . 2 1 . no_distress 1 | . . . . . . . . . 1 . . . . . . . generate_echo 1 | . . . . . . . . . . . 1 . . . . . ignore_parts 3 | . . . . . . . . . . . . . 3 . . . map_route 1 | . . . . . . . . . . . . . 1 . . . mark_security 1 | . . . . . . . . . . . . . 1 . . . spike_heat 2 | . . . . . . . . . . . . . 2 . . . overload_power 2 | . . . . . . . . . . . . . 2 . . . amplify_resonance 1 | . . . . . . . . . . . . . 1 . . . disable_weapons 2 | . . . . . . . . . . . . . 2 . . . formatsys_high 9 | . . . . . . . . . . 3 1 3 2 . . . Relay Couplers Released 11 | . . . . . . . . . . 6 . 5 . . . . Machine Destruction 11 | . . . . . . . . . . 6 . 5 . . . . Attached 8 | . . . . . . . . . . 4 1 3 . . . . Robots Rewired 5 | . . . . . . . . . . . . 3 . . 2 . Allies Hacked 2 | . . . . . . . . . 2 . . . . . . . Hacks Repelled . | . . . . . . . . . . . . . . . . . Allies | -11 -10 -10 -9 -9 -7 -6 -6 -6 -6 -6 -6 -6 -5 -5 -5 -5 -------- Run | Scr Mat Min Mat Min Zio Pro Fac Was Fac Gar Fac Gar Fac Upp Upp War Total Allies 22 | . . 2 . . . . 2 . 3 3 2 6 2 . 2 . Largest Group 5 | . . 2 . . . . 2 . 2 3 1 5 2 . 2 1 Highest-Rated Group 187 | . . 42 . . . . 60 . 36 36 41 187 73 . 59 30 Highest-Rated Ally 41 | . . 31 . . . . 34 . 26 12 41 41 41 . 30 30 Total Orders 14 | . . . . . . . 1 . . 3 1 . . 5 4 . STAY 1 | . . . . . . . 1 . . . . . . . . . FOLLOW 2 | . . . . . . . . . . . . . . . 2 . GUARD 4 | . . . . . . . . . . 3 1 . . . . . AID 2 | . . . . . . . . . . . . . . . 2 . EXPLORE 4 | . . . . . . . . . . . . . . 4 . . RETURN 1 | . . . . . . . . . . . . . . 1 . . Ally Attacks 90 | . . 9 . . . . 7 . . 18 2 46 8 . . . Total Damage 3081 | . . 127 . . . . 346 . . 220 95 2163 130 . . . Kills 23 | . . 4 . . . . 5 . . 1 . 11 2 . . . Allies Corrupted 2 | . . . . . . . . . . . 1 . . . . 1 Allies Melted . | . . . . . . . . . . . . . . . . . Intel | -11 -10 -10 -9 -9 -7 -6 -6 -6 -6 -6 -6 -6 -5 -5 -5 -5 ------- Run | Scr Mat Min Mat Min Zio Pro Fac Was Fac Gar Fac Gar Fac Upp Upp War Robot Analysis Total 1 | . 1 . . . . . . . . . . . . . . . Derelict Logs Recovered 5 | . . 1 . . 1 2 . . . . . . . 1 . . Drone Launches 4 | . . . . . . . . . . . . . . 4 . . Drone Recoveries 4 | . . . . . . . . . . . . . . 4 . . Exploration | -11 -10 -10 -9 -9 -7 -6 -6 -6 -6 -6 -6 -6 -5 -5 -5 -5 ------------- Run | Scr Mat Min Mat Min Zio Pro Fac Was Fac Gar Fac Gar Fac Upp Upp War Turns Passed 17693 | 164 653 519 730 92 2069 1950 871 121 3636 764 872 611 934 513 1867 1327 Spaces Moved 12109 | 65 301 182 308 76 1045 933 484 114 2077 664 1001 893 1125 1073 1114 654 Core 292 | 19 . . . . . . . 60 205 . . . 8 . . . Treads . | . . . . . . . . . . . . . . . . . Legs 3555 | 46 301 182 308 76 1045 933 484 54 126 . . . . . . . Wheels . | . . . . . . . . . . . . . . . . . Hover 1711 | . . . . . . . . . 1711 . . . . . . . Flight 6551 | . . . . . . . . . 35 664 1001 893 1117 1073 1114 654 Fastest Speed 29 | 50 120 120 120 120 120 120 120 50 29 29 29 29 29 29 29 29 Average Speed 64 | 109 120 120 120 120 133 121 120 84 68 29 29 29 33 31 32 36 Slowest Speed 200 | 120 120 120 120 120 150 150 120 120 200 94 29 29 150 94 94 94 Overloaded Moves . | . . . . . . . . . . . . . . . . . Propulsion Burnouts . | . . . . . . . . . . . . . . . . . Robots Hopped 4 | . . . . . . . . . . . 4 . . . . . Cave-ins Triggered . | . . . . . . . . . . . . . . . . . Exploration Rate (%) 56 | 5 76 40 28 32 85 96 11 89 46 95 22 77 17 96 92 53 Regions Visited 16 Branch Regions 7 Pre-discovered Areas 3 | . . . . . . 1 . . . . . . . 2 . . Known Exits Taken 12 | 1 1 1 1 1 1 1 . . 1 . 1 . 1 1 1 . Unknown Exits Taken . | . . . . . . . . . . . . . . . . . Scrap Searched 11 | . . . . . 3 2 . . . . . . . 2 4 . Spaces Dug 4 | . . . . . . . 1 . . . . . 1 . 2 . Terrain Destroyed 309 | . . . 2 . . 9 2 73 18 112 55 6 2 . 13 17 Melee . | . . . . . . . . . . . . . . . . . Projectile 54 | . . . . . . 9 2 . 16 1 1 . 2 . 6 17 AOE 255 | . . . 2 . . . . 73 2 111 54 6 . . 7 . Terrain Rammed . | . . . . . . . . . . . . . . . . . Walls Destroyed . | . . . . . . . . . . . . . . . . . Machines Disabled . | . . . . . . . . . . . . . . . . . Actions | -11 -10 -10 -9 -9 -7 -6 -6 -6 -6 -6 -6 -6 -5 -5 -5 -5 --------- Run | Scr Mat Min Mat Min Zio Pro Fac Was Fac Gar Fac Gar Fac Upp Upp War Total 21061 | 138 519 474 617 77 1724 1667 728 130 4042 1150 1552 1208 1624 1243 2540 1628 Wait 7453 | 50 162 286 270 . 665 684 157 . 1534 247 495 178 418 142 1314 851 Move 12088 | 64 300 181 307 75 1044 932 484 113 2077 663 993 892 1124 1072 1113 654 Hop 4 | . . . . . . . . . . . 4 . . . . . Pick Up 57 | 5 2 . 4 . 1 1 9 3 23 1 5 . 1 1 . 1 Fast Attach 96 | 4 . . 1 . 7 . 11 . 36 6 9 3 1 4 4 10 Attach 72 | 5 2 . 1 1 . 2 7 2 38 8 3 . 1 1 . 1 Detach 32 | . . . . 1 . 1 . 1 18 7 . 2 1 1 . . Swap 63 | . . . 2 . . . . . 37 4 6 2 3 3 4 2 Drop 107 | 1 2 . 1 . 7 1 12 2 49 3 11 . 2 4 3 9 Fire 646 | 9 37 4 25 . . 39 27 8 145 66 22 39 64 8 66 87 Melee . | . . . . . . . . . . . . . . . . . Ram 2 | . . . . . . . . 1 1 . . . . . . . Kick 4 | . 3 1 . . . . . . . . . . . . . . Crush . | . . . . . . . . . . . . . . . . . Escape Stasis 179 | . . . . . . . . . . 107 . 72 . . . . Rewire 2 | . . . . . . . . . 1 . . 1 . . . . Trap . | . . . . . . . . . . . . . . . . . Miscellaneous 256 | . 11 2 6 . . 7 21 . 83 38 4 19 9 7 36 13 Route ------- -11/Scrapyard -10/Materials (discovered 4 exits: *Mat x2 / *Min x2) -10/Mines (discovered 2 exits: *Mat x2) -9/Materials -9/Mines -7/Zion -6/Proximity Caves -6/Factory (discovered 9 exits: Fac x4 / Low x2 / Ext x2 / Gar) -6/Waste -6/Factory (discovered 9 exits: *Fac x4 / *Low x2 / Ext x2 / Gar) -6/Garrison (discovered 3 exits: *Fac x3) -6/Factory (discovered 7 exits: *Fac x2 / Low x2 / Ext x2 / Gar) -6/Garrison (discovered 3 exits: *Fac x3) -5/Factory -5/Upper Caves -5/Upper Caves (discovered 2 exits: *Fac / *War) -5/Warlord (discovered 1 exit: *Pro) History --------- Turn | Location | Event 1 | -11/Scrapyard | Upgraded with Propulsion slot (x1) 1 | -11/Scrapyard | Upgraded with Utility slot (x2) 1 | -11/Scrapyard | Upgraded with Weapon slot (x1) 6 | -11/Scrapyard | Identified exit to Materials 6 | -11/Scrapyard | Discovered exit to Materials (range 16) 165 | -11/Scrapyard | Entered Materials 292 | -10/Materials | Identified exit to Mines 292 | -10/Materials | Discovered exit to Mines (range 16) 306 | -10/Materials | Build established: Hacker-Skirmisher 390 | -10/Materials | Identified exit to Materials 390 | -10/Materials | Discovered exit to Materials (range 10) 670 | -10/Materials | Discovered exit to Materials (range 10) 818 | -10/Materials | Entered Mines 820 | -10/Mines | Reached level 2 866 | -10/Mines | Discovered exit to Materials (range 16) 1115 | -10/Mines | Discovered exit to Materials (range 14) 1251 | -10/Mines | Assembled infested the area 1256 | -10/Mines | Assisted by a Guerilla fighting off Assembled 1337 | -10/Mines | Entered Materials 1339 | -9/Materials | Reached level 3 1339 | -9/Materials | Reached level 4 1339 | -9/Materials | Upgraded with Utility slot (x1) 2045 | -9/Materials | Identified exit to Mines 2045 | -9/Materials | Discovered exit to Mines (range 7) 2067 | -9/Materials | Entered Mines 2069 | -9/Mines | Reached level 5 2070 | -9/Mines | Upgraded with Weapon slot (x1) 2140 | -9/Mines | A Derelict revealed a hidden shortcut to a safe place 2158 | -9/Mines | Identified exit to Zion 2159 | -9/Mines | Entered Zion 2161 | -7/Zion | Reached level 6 2244 | -7/Zion | Identified exit to Proximity Caves 2244 | -7/Zion | Discovered exit to Proximity Caves (range 18) 2622 | -7/Zion | Learned Factory garrison access intel 3019 | -7/Zion | Found Prototype Device 3019 | -7/Zion | Identified Phasing AFG 4228 | -7/Zion | Entered Proximity Caves 4230 | -6/Proximity Caves | Reached level 7 4230 | -6/Proximity Caves | Reached level 8 4230 | -6/Proximity Caves | Reached level 9 4230 | -6/Proximity Caves | Reached level 10 4230 | -6/Proximity Caves | Learned location of 1 exit from Factory 4231 | -6/Proximity Caves | Upgraded with Weapon slot (x1) 4299 | -6/Proximity Caves | Reached level 11 4345 | -6/Proximity Caves | Upgraded with Utility slot (x1) 4821 | -6/Proximity Caves | Spotted B-75 Beast 5096 | -6/Proximity Caves | Core integrity fell below 50% 5112 | -6/Proximity Caves | Destroyed B-75 Beast 5513 | -6/Proximity Caves | Identified exit to Factory 5513 | -6/Proximity Caves | Discovered exit to Factory (range 15) 6178 | -6/Proximity Caves | Entered Factory 6179 | -6/Factory | Identified exit to Factory 6179 | -6/Factory | Core integrity fell below 50% 6180 | -6/Factory | Loaded intel: 3 garrison access locations 6180 | -6/Factory | Reached level 12 6180 | -6/Factory | Reached level 13 6187 | -6/Factory | Upgraded with Power slot (x1) 6187 | -6/Factory | Upgraded with Propulsion slot (x1) 6187 | -6/Factory | Upgraded with Utility slot (x1) 6478 | -6/Factory | Identified exit to Garrison 6508 | -6/Factory | Reached level 14 6520 | -6/Factory | Garrison activated, responded to threat 6720 | -6/Factory | Identified exit to Lower Caves 6720 | -6/Factory | Identified exit to Extension 7037 | -6/Factory | Build established: Wizard-Skirmisher 7049 | -6/Factory | Sucked down chute 7049 | -6/Factory | Entered Waste 7051 | -6/Waste | Reached level 15 7063 | -6/Waste | Spotted C-40 Crusher 7064 | -6/Waste | EMP discharged 7089 | -6/Waste | Crushed by Compactor (1 part destroyed, 2 dropped) 7125 | -6/Waste | Spotted C-40 Crusher 7130 | -6/Waste | Crushed by Compactor (1 part destroyed, 2 dropped) 7131 | -6/Waste | Spotted C-40 Crusher 7135 | -6/Waste | Crushed by Compactor (1 part destroyed, 1 dropped) 7138 | -6/Waste | Crushed by Compactor (1 part destroyed, 2 dropped) 7140 | -6/Waste | Crushed by Compactor (1 part destroyed, 1 dropped) 7155 | -6/Waste | Spotted C-40 Crusher 7156 | -6/Waste | Spotted C-40 Crusher 7164 | -6/Waste | EMP discharged 7164 | -6/Waste | System corruption reached 10% 7165 | -6/Waste | Identified exit to Factory 7165 | -6/Waste | Discovered exit to Factory (range 10) 7170 | -6/Waste | Entered Factory 7171 | -6/Factory | Lost 4 parts (1n1u2w) 7313 | -6/Factory | Discovered exit to Extension (range 7) 7487 | -6/Factory | Build established: Wizard-Scout 7923 | -6/Factory | Build established: Wizard-Skirmisher 8365 | -6/Factory | Discovered exit to Factory (range 7) 8511 | -6/Factory | Build established: Wizard-Scout 8590 | -6/Factory | Discovered exit to Lower Caves (range 15) 8597 | -6/Factory | Reached level 16 8677 | -6/Factory | Found Prototype Launcher 8677 | -6/Factory | Identified Scatter Rocket Array 8817 | -6/Factory | Fabricated Adv. Signal Interpreter (x2) 8861 | -6/Factory | Reached level 17 9080 | -6/Factory | Local fabrication network quarantined 9249 | -6/Factory | Discovered exit to Lower Caves (range 16) 9563 | -6/Factory | Discovered exit to Factory (range 14) 9898 | -6/Factory | Discovered exit to Factory (range 16) 10321 | -6/Factory | Reached level 18 10336 | -6/Factory | Upgraded with Utility slot (x1) 10769 | -6/Factory | P-60 Hacker assimilated allied Administrator 5c 10806 | -6/Factory | Identified exit to Garrison 10806 | -6/Factory | Entered Garrison 10820 | -6/Garrison | Triggered checkpoint 10878 | -6/Garrison | Garrison Relay disabled 10942 | -6/Garrison | Phase Generator disabled 11146 | -6/Garrison | Triggered checkpoint 11158 | -6/Garrison | Identified exit to Factory 11158 | -6/Garrison | Discovered exit to Factory (range 15) 11163 | -6/Garrison | Installed Relay Interface Framework 11163 | -6/Garrison | Reached level 19 11197 | -6/Garrison | Garrison Relay disabled 11214 | -6/Garrison | Triggered checkpoint 11298 | -6/Garrison | Triggered checkpoint 11306 | -6/Garrison | Discovered exit to Factory (range 14) 11332 | -6/Garrison | Garrison Relay disabled 11334 | -6/Garrison | Triggered checkpoint 11360 | -6/Garrison | Triggered checkpoint 11402 | -6/Garrison | Triggered checkpoint 11429 | -6/Garrison | Discovered exit to Factory (range 16) 11432 | -6/Garrison | Triggered checkpoint 11466 | -6/Garrison | Garrison Relay disabled 11570 | -6/Garrison | Entered Factory 11659 | -6/Factory | Repaired Lgt. Fission Core 11694 | -6/Factory | Repaired Nova Cannon 11720 | -6/Factory | Repaired Proton Cannon 11743 | -6/Factory | Discovered exit to Factory (range 18) 11919 | -6/Factory | Fabricated Nova Cannon (x1) 11953 | -6/Factory | Spotted B-75 Beast 11960 | -6/Factory | Local fabrication network quarantined 12217 | -6/Factory | Discovered exit to Factory (range 17) 12442 | -6/Factory | Identified exit to Garrison 12442 | -6/Factory | Entered Garrison 12444 | -6/Garrison | Expanded RIF knowledge: Threat Obfuscation 12462 | -6/Garrison | Triggered checkpoint 12498 | -6/Garrison | Discovered exit to Factory (range 15) 12536 | -6/Garrison | Garrison Relay disabled 12540 | -6/Garrison | Triggered checkpoint 12616 | -6/Garrison | Triggered checkpoint 12624 | -6/Garrison | Reached level 20 12626 | -6/Garrison | Upgraded with Utility slot (x1) 12710 | -6/Garrison | Triggered checkpoint 12740 | -6/Garrison | Discovered exit to Factory (range 13) 12757 | -6/Garrison | Spotted B-75 Beast 12774 | -6/Garrison | Destroyed B-75 Beast 12796 | -6/Garrison | Triggered checkpoint 12845 | -6/Garrison | Discovered exit to Factory (range 10) 12870 | -6/Garrison | Triggered checkpoint 12908 | -6/Garrison | Triggered checkpoint 13053 | -6/Garrison | Entered Factory 13053 | -5/Factory | Accompanied by 1 ally 13135 | -5/Factory | Reached level 21 13520 | -5/Factory | Core integrity fell below 50% 13834 | -5/Factory | Build established: Wizard-Mutant 13982 | -5/Factory | Identified exit to Upper Caves 13982 | -5/Factory | Discovered exit to Upper Caves (range 6) 13987 | -5/Factory | Entered Upper Caves 14289 | -5/Upper Caves | Learned location of Armory (-3) 14289 | -5/Upper Caves | Learned Factory trap positions 14289 | -5/Upper Caves | Learned Extension emergency access door positions 14289 | -5/Upper Caves | Learned Extension security intel 14364 | -5/Upper Caves | Identified exit to Upper Caves 14364 | -5/Upper Caves | Discovered exit to Upper Caves (range 8) 14500 | -5/Upper Caves | Entered another Upper Caves area 14502 | -5/Upper Caves | Reached level 22 14526 | -5/Upper Caves | Attracted the attention of an 0b10 checkpoint 14562 | -5/Upper Caves | Build established: Wizard-Scout 14569 | -5/Upper Caves | Identified exit to Factory 14569 | -5/Upper Caves | Discovered exit to Factory (range 13) 15275 | -5/Upper Caves | Attracted the attention of an 0b10 outpost 15366 | -5/Upper Caves | Destroyed 9 combat bots 15915 | -5/Upper Caves | Found Alien Artifact 15915 | -5/Upper Caves | Identified Dimensional Node Initializer 15915 | -5/Upper Caves | Initialized slip node 16075 | -5/Upper Caves | Identified exit to Warlord 16075 | -5/Upper Caves | Discovered exit to Warlord (range 15) 16367 | -5/Upper Caves | Entered Warlord 16367 | -5/Warlord | Accompanied by 1 ally 16430 | -5/Warlord | Identified exit to Proximity Caves 16430 | -5/Warlord | Discovered exit to Proximity Caves (range 14) 16450 | -5/Warlord | RIF detected upon attempting to enter Warlord's base 16450 | -5/Warlord | Attacked by Warlord forces 16452 | -5/Warlord | Spotted K4-P1I(B) 16452 | -5/Warlord | Spotted V2-W1I(B) 16543 | -5/Warlord | Destroyed V2-W1I(B) 16600 | -5/Warlord | Core integrity fell below 20% 16614 | -5/Warlord | Destroyed K4-P1I(B) 16643 | -5/Warlord | Warlord's base attacked by MAIN.C 16993 | -5/Warlord | Warlord forces counterattacked 17318 | -5/Warlord | Warlord base infiltrated, sounded retreat 17355 | -5/Warlord | Spotted MA-7X3(K) 17378 | -5/Warlord | Found Prototype Launcher 17378 | -5/Warlord | Identified Vortex Catalyst Activator 17380 | -5/Warlord | Found Prototype Energy Gun 17380 | -5/Warlord | Identified Vortex Rifle 17382 | -5/Warlord | Found Vortex Rifle 17643 | -5/Warlord | Spotted Executioner 17644 | -5/Warlord | Destroyed Executioner 17644 | -5/Warlord | Reached level 23 17658 | -5/Warlord | Found Prototype Processor 17658 | -5/Warlord | Identified Exp. Core Analyzer 17662 | -5/Warlord | Found Prototype Device 17662 | -5/Warlord | Identified Adv. Kinecellerator 17674 | -5/Warlord | Destroyed 11 combat bots 17675 | -5/Warlord | Spotted Striker 17694 | -5/Warlord | Destroyed by Striker with Plasma Lance Last Messages --------------- 17659_ Discarded Exp. Core Analyzer. 17661_ Acquired 10 matter. 17662_ Acquired Prototype Device. 17662_ Identified Adv. Kinecellerator. 17663_ Dropped Adv. Kinecellerator. 17664_ Acquired Prototype Reactor. 17664_ Identified Imp. Quantum Reactor. 17666_ Acquired Prototype Processor. 17666_ Identified Exp. Optical Array. 17667_ Acquired 30 matter. 17668_ Discarded Exp. Optical Array. 17669_ Acquired Cloaking Device. 17672_ Acquired 10 matter. 17673_ Dropped Imp. Quantum Reactor. 17673_ Acquired Lgt. Antimatter Reactor. 17675_ Acquired 10 matter. 17679_ Dropped Nova Cannon. 17680_ Acquired Nova Cannon. 17685_ Acquired 10 matter. [Achievement: 20k Club] Map ----- +----------------------------------------------------+ | ???????????????????########?###p ### #" # | | ???? ?? ?g???????????############### # [ | | ????? +? ?? ?????#?########"##"=#"""## # #%!% | | ???#?## ?gg? ?? %=%!%b%dib %!%[=[*=%[ | | ###?##? ?iK #####?#"#""=%!=[[g! d [==/!ib%! | | #????## ?#########"[*!%*[g[xg =%!=[% | | ###?### ####""""""%==/%!%%% [=[% g | | ###################" X X##= %=![!=####+##*#### | | #?##?######?#######"X #"!/!*= ** #### | | ?##################" " #### ## # | | ###################"X # " ######" | | ###?################ X## #### ####### | | ####?###?####################/#### ####### | | #??###################### # # !%* ######" | | ######################### # # = ####### | | ##########X##### ####;# # ###### | | # # + | | b ##########% | | #m^ ########## h | | ################ ####%# ########## ## | | ######################### %* ###""""" # #### | | """""""###############l# ###"" "" +%= # ! | | """"############# ;g# ###"" % #! # | | """"##############;g; ###"" " # # | | """ ##############;K# ###""""X # # | | ]] ##############;@; ########## # | | " ###############*%################ # | | """##############/% = ############## # | | X""""#############"=%##+############## # | | """" """############# !%= ############## # | | """"""""""############# *[% ############## #### | | ####################### ! ##############!!!## | | #?####?################ !% #######""" ##%!%## | | #########?############# = #######"! + ==!# | | ##?##??#??############# #######""" ## ## | | ##?###??#?########################## ## ###+ | | #?##?###################################### | | #?####?##?#################################### | | ####????############################### # | | ?###?#???##??########################## + | | ?????#?###?####?####################### ##### | | ??????#???#?########################### ###### | | ????????????#??#?###################?########?##?# | | ????????????????###############?#####?#?##?####### | | | | | | | | | | | | | +----------------------------------------------------+ Best States ------------- Heat Dissipation 91 Energy Generation 57 Energy Capacity 1200 Matter Stores 300 Matter Capacity 300 Sight Range 18 Robot Scan Range 30 Terrain Scan Range 16 Terrain Scan Density 510 Cloak Strength 2 Additional Mass Support 9 Armor Coverage 225 Resistance: KI 35 Resistance: TH 35 Resistance: EX 35 Resistance: EM 35 Resistance: I 35 Resistance: S 35 Resistance: P 35 Utility Shielding 66 Weapon Shielding 66 Phase Shifting 5 Evasion (%) 65 Targeting Accuracy 5 Energy Filtering 30 Particle Charging 20 Offensive Hacking 45 Defensive Hacking 27 Relay Coupler Types 270 Relay Coupler Value 3 Item Schematics ----------------- Imp. Aluminum Leg | -9/Materials | Hacked Hvy. Beamcaster | -7/Zion | Free Riot Gun | -7/Zion | Free Arc Thrower | -7/Zion | Free Battle Cannon | -7/Zion | Free Power Amplifier | -6/Factory | Hacked Imp. VTOL Module | -6/Factory | Hacked Adv. Signal Interpreter | -6/Factory | Hacked Lrn. Terrain Scanner | -6/Factory | Hacked Triangulator | -6/Factory | Hacked Imp. Remote Datajack | -6/Factory | Hacked Imp. Force Field | -6/Factory | Hacked Antigrav System | -6/Factory | Hacked Imp. Cryofiber Web | -6/Factory | Hacked Adv. Plasma Cannon | -6/Factory | Hacked Drone Bay | -6/Factory | Hacked Nova Cannon | -6/Factory | Scanalyzed Nuclear Pulse Array | -5/Factory | Hacked Reaction Control System | -5/Factory | Hacked Robot Schematics ------------------ R-06 Scavenger | -6/Factory | Hacked G-50 Soldier | -6/Factory | Hacked I-47 Archangel | -5/Factory | Hacked Fabricated ------------ Adv. Signal Interpreter | x2 | -6/Factory Nova Cannon | x1 | -6/Factory Alien Tech Used ----------------- Dimensional Node Initializer Achievements -------------- 20k Club Infiltrator Challenges ------------ None RPGLIKE | -11 -10 -10 -9 -9 -7 -6 -6 -6 -6 -6 -6 -6 -5 -5 -5 -5 --------- Run | Scr Mat Min Mat Min Zio Pro Fac Was Fac Gar Fac Gar Fac Upp Upp War Levels Raised 22 | . . 1 2 1 1 5 3 1 3 1 . 1 1 . 1 1 XP Earned 39103 | 6000 1175 1011 3508 500 1849 8439 4497 200 4695 1766 366 872 2157 335 1061 672 XP Spent 37035 | 5835 . 1655 2845 1635 1440 7560 4100 1890 4325 745 . 2300 1605 . 1100 . Upgrades 85 | 20 . 8 10 4 5 14 5 4 8 3 . 1 2 . 1 . Power Slot 1 | . . . . . . . 1 . . . . . . . . . Propulsion Slot 2 | 1 . . . . . . 1 . . . . . . . . . Utility Slot 7 | 2 . . 1 . . 1 1 . 1 . . 1 . . . . Weapon Slot 3 | 1 . . . 1 . 1 . . . . . . . . . . Core Integrity 9 | . . 1 . 1 . 2 . 1 2 1 . . 1 . . . Heat Dissipation 11 | 2 . 4 1 . 1 1 . . 1 1 . . . . . . Energy Generation 3 | 1 . . . . . 1 . . 1 . . . . . . . Energy Storage 6 | 2 . . . . . 1 . 2 1 . . . . . . . Mass Support 3 | . . . . . . . 1 . 1 . . . . . 1 . Inventory Capacity 6 | 2 . 1 . . . 1 . 1 . . . . 1 . . . Sight Range 2 | 2 . . . . . . . . . . . . . . . . Sensor Range 15 | . . . 6 1 3 4 . . . 1 . . . . . . Terrain Scan Density 5 | 4 . . . . . . . . 1 . . . . . . . Ranged Accuracy 2 | 2 . . . . . . . . . . . . . . . . Hack Attack % 5 | . . 1 1 1 . 1 1 . . . . . . . . . Hack Defense % 3 | . . 1 1 . . 1 . . . . . . . . . . TH Damage % 2 | 1 . . . . 1 . . . . . . . . . . . Protomatter Created 3041 | . 87 20 166 . . 47 223 . 712 228 45 140 287 56 812 218 Integrity Restored 5314 | . 216 15 104 . . 141 465 . 1754 775 77 347 197 168 764 291 Core 4444 | . 140 8 80 . . 141 465 . 1419 650 67 268 179 168 568 291 Parts 870 | . 76 7 24 . . . . . 335 125 10 79 18 . 196 . Protomatter Decayed 3652 | . 4 37 97 . . . 68 . 91 19 80 399 191 . 516 2150 Game ------ Seed AntigravDefenseChip Manual? 0 Play Time 07:43:37 Cumulative 188.8 hours Start 2021.01.24 @ 02:02:19 End 2021.08.16 @ 20:06:18 Sessions 4 Manual Loads 0 Difficulty Explorer Special Mode Winter2019/RPGLIKE Game No. 32 Rogue 9 Adventurer 0 Explorer 23 Win Type - Total 0 Types 0/0/0/0/0/0/0/0/0 Lore% 49 Gallery% 48 Achievement% 41 Wizard Run 0 Options --------- ASCII 0 Keyboard 0 Movement Mouse Keybinds 0 Fullscreen 2 Font 18/SmallcapsGlow Map View 76x50 Tactical HUD 1 Map Filters NONE Filters NONE Steam 1 RUN: 8940e6d0-0fb4-41fd-8f30-d3bcddca0fa3